bitfinex/quotes_SOLUSD_20241009
["timestamp","ask_amount","ask_price","bid_price","bid_amount"]
[1728434618121,6.957,143.74,143.68,30.7414]
[1728434618422,6.957,143.74,143.69,1.39157531]
[1728434620007,6.957,143.74,143.69,8.35077531]
[1728434620823,6.9579,143.72,143.69,1.39157531]
[1728434621113,6.9579,143.72,143.68,17.3988]
[1728434621497,6.9579,143.72,143.69,1.39164274]
[1728434621698,6.9579,143.72,143.68,17.3988]
[1728434622799,6.9579,143.72,143.68,18.79052164]
[1728434624422,6.9579,143.72,143.68,17.3988]
[1728434624923,6.9589,143.7,143.66,16.0214]
[1728434625225,6.9599,143.68,143.64,6.2632]
[1728434625598,43.776884,143.73,143.62,33.098]
[1728434625805,6.9604,143.67,143.62,40.0607]
[1728434626529,6.9598,143.69,143.63,6.9622]
[1728434626728,6.958,143.72,143.67,6.9603]
[1728434626931,23.3399614,143.76,143.68,1.39174985]
[1728434627102,23.3399614,143.76,143.64,1.39159589]
[1728434627299,16.1011922,143.76,143.65,23.776884]
[1728434627506,6.9574,143.74,143.69,6.9592]
[1728434627700,6.9574,143.74,143.7,1.39164489]
[1728434628115,6.9575,143.73,143.69,6.9592]
[1728434628508,6.9575,143.73,143.67,17.3999]
[1728434628509,6.9575,143.73,143.68,6.9598]
[1728434628903,6.9575,143.73,143.69,1.39160861]
[1728434630030,6.9579,143.72,143.68,6.9598]
[1728434630411,6.9573,143.74,143.69,1.39163576]
[1728434630922,6.9566,143.75,143.7,6.9589]
[1728434631114,7.8002922,143.76,143.71,6.9582]
[1728434632727,6.9566,143.75,143.7,6.9588]
[1728434633529,6.9571,143.74,143.69,24.3571]
[1728434634228,6.958,143.72,143.67,7.52539132]
[1728434634431,6.958,143.72,143.67,6.1339]
[1728434635011,6.958,143.72,143.68,6.9598]
[1728434635314,6.9576,143.73,143.68,6.9598]
[1728434636940,6.9576,143.73,143.69,1.39162833]
[1728434637133,6.957,143.74,143.69,8.35092833]
[1728434638007,6.957,143.74,143.7,6.9587]
[1728434638234,6.957,143.74,143.71,1.3914759]
[1728434638613,6.957,143.74,143.7,6.9587]
[1728434639019,0.8441922,143.76,143.68,17.399]
[1728434639232,6.9576,143.73,143.68,24.3588]
[1728434639434,6.9576,143.73,143.69,1.39162836]
[1728434640614,6.9573,143.74,143.69,6.959]
[1728434641020,0.8441922,143.76,143.7,1.39148442]
[1728434641233,6.9566,143.75,143.7,8.35028442]
[1728434642111,0.8441922,143.76,143.68,17.399]
[1728434642311,6.958,143.72,143.68,24.3588]
[1728434642528,18.2351922,143.76,143.69,6.9593]
[1728434642717,0.8441922,143.76,143.69,8.35092537]
[1728434642924,6.9571,143.74,143.7,6.9588]
[1728434643529,0.8441922,143.76,143.73,6.9574]
[1728434643739,0.8441922,143.76,143.74,1.39129504]
[1728434643913,0.8441922,143.76,143.74,8.34819504]
[1728434644109,0.8441922,143.76,143.75,6.9565]
[1728434645212,0.8441922,143.76,143.75,8.34747315]
[1728434645433,0.8441922,143.76,143.75,30.733384]
[1728434646019,0.8441922,143.76,143.74,17.3919]
[1728434646213,0.8441922,143.76,143.74,24.3488]
[1728434646412,0.8441922,143.76,143.74,17.3919]
[1728434647135,0.8441922,143.76,143.74,24.3484]
[1728434647432,0.8441922,143.76,143.74,17.3919]
[1728434648023,0.8441922,143.76,143.71,17.3958]
[1728434648214,6.9566,143.75,143.71,17.3958]
[1728434648414,7.8002922,143.76,143.71,24.3542]
[1728434648826,7.8002922,143.76,143.72,6.9579]
[1728434649433,7.8002922,143.76,143.71,24.354]
[1728434650942,0.8441922,143.76,143.69,23.6052]
[1728434651123,6.9571,143.74,143.69,23.6052]
[1728434651320,6.9571,143.74,143.69,16.6462]
[1728434651621,6.9566,143.75,143.71,6.9583]
[1728434652625,6.9571,143.74,143.69,16.6462]
[1728434652821,6.9571,143.74,143.69,23.6054]
[1728434653024,6.9571,143.74,143.7,6.9588]
[1728434653245,0.8441922,143.76,143.71,1.39142975]
[1728434653447,0.8441922,143.76,143.68,17.3993]
[1728434653448,6.958,143.72,143.68,24.3588]
[1728434653625,6.9574,143.74,143.69,6.9594]
[1728434654445,6.9574,143.74,143.68,17.3993]
[1728434654759,6.9566,143.75,143.7,6.9588]
[1728434655045,0.8441922,143.76,143.71,1.39148722]
[1728434655255,0.8441922,143.76,143.72,6.9578]
[1728434655546,7.8001922,143.76,143.72,1.39132853]
[1728434655748,6.9565,143.75,143.71,17.3958]
[1728434656063,6.957,143.74,143.69,6.9593]
[1728434657134,7.8002922,143.76,143.71,6.9584]
[1728434657338,6.9565,143.75,143.71,6.9584]
[1728434657643,6.9565,143.75,143.7,8.35029735]
[1728434657957,6.9565,143.75,143.7,6.9588]
[1728434658341,6.9571,143.74,143.68,17.3996]
[1728434658530,6.9566,143.75,143.7,6.9589]
[1728434659548,0.8441922,143.76,143.7,6.9589]
[1728434659756,6.9571,143.74,143.7,6.9589]
[1728434661661,6.9566,143.75,143.71,1.39148932]
[1728434662031,6.9566,143.75,143.7,6.9589]
[1728434662538,6.957,143.74,143.7,6.9589]
[1728434662751,0.8441922,143.76,143.68,24.3594]
[1728434663058,6.9575,143.73,143.68,24.3594]
[1728434663753,6.9571,143.74,143.69,8.35098815]
[1728434664061,0.8441922,143.76,143.7,6.9588]
[1728434664232,0.8441922,143.76,143.72,6.9576]
[1728434664432,0.8441922,143.76,143.73,1.39126358]
[1728434665132,0.8441922,143.76,143.73,8.34826358]
[1728434665337,0.8441922,143.76,143.72,17.3943]
[1728434665541,7.8004922,143.76,143.72,17.3943]
[1728434665751,7.8004922,143.76,143.72,24.3521]
[1728434666643,7.8004922,143.76,143.72,17.3943]
[1728434667062,6.9565,143.75,143.72,17.3943]
[1728434667359,6.957,143.74,143.68,17.399]
[1728434667559,6.957,143.74,143.7,6.9588]
[1728434667763,6.957,143.74,143.68,17.399]
[1728434667764,0.8441922,143.76,143.68,17.399]
[1728434668058,7.8002922,143.76,143.71,6.9583]
[1728434668664,0.8441922,143.76,143.7,17.3968]
[1728434668841,0.8441922,143.76,143.69,6.959]
[1728434668842,6.957,143.74,143.69,6.959]
[1728434669047,6.9578,143.73,143.68,30.736684]
[1728434669446,0.8441922,143.76,143.68,23.776884]
[1728434669644,6.958,143.72,143.68,23.776884]
[1728434670349,6.9575,143.73,143.69,1.39159143]
[1728434670560,0.8441922,143.76,143.69,18.78939143]
[1728434670875,0.8441922,143.76,143.69,17.3978]
[1728434671247,6.9568,143.75,143.7,6.9585]
[1728434671849,6.957,143.74,143.69,24.3571]
[1728434672449,6.9565,143.75,143.7,6.9584]
[1728434672869,0.8441922,143.76,143.7,6.9584]
[1728434672870,0.8441922,143.76,143.71,1.39146223]
[1728434673064,0.8441922,143.76,143.72,6.9578]
[1728434673269,0.8441922,143.76,143.71,17.3954]
[1728434673453,0.8441922,143.76,143.72,30.734684]
[1728434673855,0.8441922,143.76,143.72,23.776884]
[1728434674060,0.8441922,143.76,143.71,17.3954]
[1728434674061,6.9566,143.75,143.71,17.3954]
[1728434674264,0.8441922,143.76,143.71,17.3954]
[1728434674447,0.8441922,143.76,143.71,24.3537]
[1728434674659,6.9565,143.75,143.71,17.3954]
[1728434677270,7.8002922,143.76,143.71,24.3537]
[1728434677469,0.8441922,143.76,143.72,6.9575]
[1728434680563,7.8001922,143.76,143.72,6.9575]
[1728434682580,7.8001922,143.76,143.73,1.39127416]
[1728434682968,7.8001922,143.76,143.72,6.9575]
[1728434683700,6.9565,143.75,143.71,17.3954]
[1728434683988,6.9565,143.75,143.71,18.78680661]
[1728434684574,6.9565,143.75,143.71,17.3954]
[1728434684779,6.9565,143.75,143.71,18.78680634]
[1728434685087,6.9565,143.75,143.71,17.3954]
[1728434685683,6.9565,143.75,143.72,1.39139821]
[1728434686403,6.9565,143.75,143.71,24.3537]
[1728434689473,6.9565,143.75,143.71,17.3954]
[1728434690895,6.9583,143.72,143.68,17.3997]
[1728434691198,18.2344922,143.76,143.69,6.9594]
[1728434691387,6.957,143.74,143.69,6.9594]
[1728434692180,6.9566,143.75,143.7,8.35011492]
[1728434692386,7.8002922,143.76,143.71,6.9582]
[1728434692890,6.9567,143.75,143.71,6.9582]
[1728434693275,0.8441922,143.76,143.72,1.39138935]
[1728434693481,0.8441922,143.76,143.73,6.9574]
[1728434693782,0.8441922,143.76,143.74,1.3912504]
[1728434694088,0.8441922,143.76,143.73,6.9574]
[1728434695382,0.8441922,143.76,143.72,6.9578]
[1728434695583,7.8003922,143.76,143.71,6.9583]
[1728434695981,6.9566,143.75,143.7,24.355]
[1728434696394,6.9566,143.75,143.71,8.34960304]
[1728434696993,0.8441922,143.76,143.71,8.34960304]
[1728434697297,7.8002922,143.76,143.71,8.34960304]
[1728434698707,7.8002922,143.76,143.71,6.9582]
[1728434699491,7.8002922,143.76,143.72,1.39133336]
[1728434699689,7.8002922,143.76,143.71,6.9582]
[1728434700002,0.8441922,143.76,143.72,1.39134035]
[1728434700307,0.8441922,143.76,143.73,6.9573]
[1728434700515,0.8441922,143.76,143.75,6.9565]
[1728434701486,0.8441922,143.76,143.75,32.12435581]
[1728434702295,0.8441922,143.76,143.75,30.733384]
[1728434703708,0.8441922,143.76,143.75,30.858874]
[1728434703896,0.8441922,143.76,143.75,32.37510297]
[1728434704102,0.8441922,143.76,143.75,52.37510297]
[1728434704407,16.641,143.88,143.76,44.027864]
[1728434704589,6.9512,143.86,143.81,6.9535]
[1728434705787,6.9512,143.86,143.82,6.953]
[1728434707105,6.9508,143.87,143.83,1.3902977]
[1728434707295,6.9508,143.87,143.82,6.953]
[1728434707700,16.641,143.88,143.81,23.776884]
[1728434707898,16.641,143.88,143.8,24.3387]
[1728434707899,6.9517,143.85,143.8,24.3387]
[1728434708708,34.0173,143.88,143.79,15.2991]
[1728434708890,34.0173,143.88,143.79,22.2535]
[1728434708891,6.9522,143.84,143.79,22.2535]
[1728434709405,34.0173,143.88,143.79,15.2991]
[1728434709596,6.9517,143.85,143.8,6.9539]
[1728434709990,6.9523,143.84,143.79,22.2536]
[1728434710693,20.0,143.87,143.76,16.1312]
[1728434710894,6.9542,143.8,143.76,16.1312]
[1728434711284,6.9542,143.8,143.74,24.0522]
[1728434711285,6.9549,143.79,143.74,31.0092]
[1728434711584,6.4544,143.84,143.75,6.9564]
[1728434711785,6.9541,143.8,143.75,6.9564]
[1728434712009,6.9537,143.81,143.76,6.956]
[1728434712221,6.953,143.83,143.78,6.9546]
[1728434712509,20.0,143.87,143.78,6.9546]
[1728434712706,6.9531,143.82,143.78,6.9546]
[1728434713011,6.9527,143.83,143.78,6.9546]
[1728434714003,20.0,143.87,143.79,8.34515513]
[1728434714193,20.0,143.87,143.82,6.953]
[1728434714194,6.9511,143.87,143.82,6.953]
[1728434714399,6.9512,143.86,143.81,6.9535]
[1728434714597,22.8297,143.88,143.81,6.9535]
[1728434714813,6.9517,143.85,143.81,6.9535]
[1728434715316,6.9517,143.85,143.8,24.3384]
[1728434715533,6.9527,143.83,143.79,23.776884]
[1728434716207,17.3781,143.86,143.78,15.719]
[1728434716611,6.9522,143.84,143.79,30.731184]
[1728434717921,7.24431764,143.87,143.79,41.162384]
[1728434718137,6.9508,143.87,143.82,6.9529]
[1728434718995,6.9508,143.87,143.81,17.3829]
[1728434718996,22.8297,143.88,143.81,24.3364]
[1728434719245,22.8297,143.88,143.82,23.776884]
[1728434719246,6.9512,143.86,143.82,23.776884]
[1728434719423,22.8297,143.88,143.82,23.776884]
[1728434719632,6.9507,143.87,143.82,30.729784]
[1728434720131,6.9507,143.87,143.83,6.9526]
[1728434720420,6.9507,143.87,143.82,30.729884]
[1728434720622,6.9513,143.86,143.82,23.776884]
[1728434720810,6.9513,143.86,143.81,24.3364]
[1728434721211,6.9513,143.86,143.82,30.729784]
[1728434721820,6.9507,143.87,143.82,30.729784]
[1728434722403,16.641,143.88,143.81,17.3829]
[1728434722603,6.9521,143.84,143.81,17.3829]
[1728434722799,6.9521,143.84,143.79,30.731384]
[1728434723102,16.641,143.88,143.79,6.9545]
[1728434723103,6.9526,143.83,143.79,6.9545]
[1728434723801,34.0172,143.88,143.78,33.1062]
[1728434724025,6.9532,143.82,143.75,17.3908]
[1728434724206,6.9536,143.81,143.77,6.9555]
[1728434724397,6.9532,143.82,143.77,6.9555]
[1728434726530,6.9532,143.82,143.78,1.39069699]
[1728434727405,6.9532,143.82,143.77,6.9555]
[1728434728127,6.9537,143.81,143.77,6.9555]
[1728434728327,6.9537,143.81,143.76,23.776884]
[1728434729110,6.9537,143.81,143.76,30.732684]
[1728434729426,6.9537,143.81,143.77,8.34619311]
[1728434729622,6.9537,143.81,143.77,6.9554]
[1728434731038,6.9541,143.8,143.76,30.732784]
[1728434731206,6.9541,143.8,143.75,24.3469]
[1728434731533,6.9541,143.8,143.76,6.9558]
[1728434732606,17.381,143.84,143.75,24.3472]
[1728434732807,6.9557,143.77,143.73,6.9574]
[1728434733025,20.0,143.82,143.73,6.9574]
[1728434733227,6.9549,143.79,143.74,1.39114832]
[1728434733408,17.3839,143.82,143.74,6.9569]
[1728434733409,6.9551,143.78,143.74,6.9569]
[1728434734015,6.956,143.76,143.72,17.3943]
[1728434734342,51.0428,143.83,143.72,17.3943]
[1728434734343,6.956,143.77,143.72,1.39132073]
[1728434734627,6.956,143.77,143.72,8.34922073]
[1728434735215,6.1304,143.79,143.72,8.34922073]
[1728434735420,6.9561,143.76,143.71,6.9584]
[1728434738207,15.143,143.78,143.69,24.3571]
[1728434738905,6.9571,143.74,143.69,24.3571]
[1728434739331,6.9571,143.74,143.69,17.3981]
[1728434739513,6.9575,143.73,143.69,17.3981]
[1728434739717,6.958,143.72,143.66,33.9349]
[1728434739920,6.9575,143.73,143.69,6.9593]
[1728434740645,6.958,143.72,143.67,6.9602]
[1728434741310,7.22700104,143.77,143.7,6.9587]
[1728434741513,6.9569,143.75,143.7,6.9587]
[1728434741937,6.957,143.74,143.7,6.9587]
[1728434742115,6.9575,143.73,143.68,24.3586]
[1728434744635,20.0,143.77,143.68,17.3991]
[1728434744839,6.9583,143.72,143.68,17.3991]
[1728434745013,6.9583,143.72,143.68,24.3588]
[1728434745221,6.9571,143.74,143.69,1.39167786]
[1728434746151,7.22719595,143.77,143.69,1.39167786]
[1728434746358,7.22719595,143.77,143.7,23.776884]
[1728434746524,15.287,143.82,143.72,17.3942]
[1728434746725,6.9562,143.76,143.72,24.352]
[1728434746950,6.9567,143.75,143.7,30.735684]
[1728434747652,6.9574,143.74,143.69,24.3576]
[1728434747845,6.9574,143.74,143.7,1.39155298]
[1728434749055,6.9574,143.74,143.69,24.3576]
[1728434749857,6.9576,143.73,143.69,17.3983]
[1728434750760,23.6728,143.77,143.69,17.3983]
[1728434751055,6.958,143.72,143.66,33.935]
[1728434751252,6.9584,143.71,143.67,6.9602]
[1728434751455,6.958,143.72,143.67,1.39174848]
[1728434751767,6.9576,143.73,143.68,6.9595]
[1728434751943,6.958,143.72,143.67,6.9602]
[1728434753058,6.9586,143.71,143.67,6.9602]
[1728434753253,15.2745,143.76,143.66,33.935]
[1728434753254,6.9593,143.7,143.66,17.4016]
[1728434753948,6.9585,143.71,143.66,24.3623]
[1728434754140,6.958,143.72,143.67,6.9602]
[1728434754543,6.958,143.72,143.68,1.39179275]
[1728434754943,6.958,143.72,143.67,6.9602]
[1728434755361,6.958,143.72,143.68,1.39179316]
[1728434757646,6.958,143.72,143.67,6.9602]
[1728434759365,6.9585,143.71,143.67,6.9602]
[1728434759558,6.9585,143.71,143.66,24.3623]
[1728434759942,24.61260361,143.75,143.66,17.4016]
[1728434760266,6.959,143.7,143.66,17.4016]
[1728434760640,7.22050361,143.75,143.63,67.6172]
[1728434760843,17.3967,143.71,143.62,6.9626]
[1728434761040,6.9614,143.65,143.61,6.9632]
[1728434761274,6.9614,143.65,143.6,24.3725]
[1728434761439,6.9619,143.64,143.6,17.4088]
[1728434761840,6.9624,143.63,143.59,15.2698]
[1728434762044,6.9624,143.63,143.57,24.3772]
[1728434763851,6.9624,143.63,143.58,6.9647]
[1728434764060,20.0,143.66,143.57,17.4125]
[1728434764261,21.7361,143.67,143.59,17.4096]
[1728434764468,21.7361,143.67,143.6,1.39240831]
[1728434764469,15.4799,143.67,143.6,1.39240831]
[1728434764678,20.0,143.7,143.61,17.4073]
[1728434764842,16.6158,143.71,143.63,6.9619]
[1728434764843,6.9602,143.68,143.63,6.9619]
[1728434765046,6.9594,143.7,143.64,8.35387517]
[1728434765571,6.9609,143.66,143.61,29.4121]
[1728434765772,34.0126,143.71,143.61,23.3678]
[1728434765951,6.9604,143.67,143.62,8.35493889]
[1728434766362,34.0126,143.71,143.62,1.39233889]
[1728434766643,6.9599,143.68,143.63,8.3544442]
[1728434766848,34.0126,143.71,143.64,6.9617]
[1728434766849,6.9595,143.69,143.64,6.9617]
[1728434767374,6.96,143.68,143.63,6.9622]
[1728434767865,6.9604,143.67,143.63,6.9622]
[1728434768042,23.83246805,143.71,143.63,6.9622]
[1728434768043,6.9599,143.68,143.63,6.9622]
[1728434768243,6.9599,143.68,143.64,1.39214786]
[1728434768774,6.9599,143.68,143.63,6.9622]
[1728434771270,6.9604,143.67,143.63,6.9622]
[1728434771842,6.9609,143.66,143.62,17.406]
[1728434772550,6.9609,143.66,143.62,24.3686]
[1728434773851,6.9614,143.65,143.61,16.4047]
[1728434774359,17.3978,143.7,143.61,23.3678]
[1728434774664,6.961,143.66,143.61,23.3678]
[1728434775783,17.3978,143.7,143.62,6.9627]
[1728434775958,6.9604,143.67,143.63,6.9622]
[1728434777190,23.83246805,143.71,143.64,1.39227078]
[1728434777482,6.9599,143.68,143.64,6.9618]
[1728434777977,6.9595,143.69,143.65,8.35345282]
[1728434778277,6.9581,143.72,143.68,6.9595]
[1728434778754,6.9571,143.74,143.69,8.351084]
[1728434779582,6.9571,143.74,143.69,1.391784]
[1728434779881,6.9575,143.73,143.67,33.3821]
[1728434780474,6.9575,143.73,143.69,6.9593]
[1728434780785,6.957,143.74,143.7,8.35045882]
[1728434781463,6.957,143.74,143.67,33.3821]
[1728434781665,6.9575,143.73,143.69,6.9593]
[1728434783289,6.9575,143.73,143.67,33.3821]
[1728434783290,14.12754192,143.77,143.73,6.9574]
[1728434783473,14.12754192,143.77,143.72,17.3949]
[1728434783474,6.9561,143.76,143.72,24.3527]
[1728434783792,7.43991749,143.8,143.72,24.3527]
[1728434783793,6.9556,143.77,143.73,8.34877627]
[1728434784095,6.9551,143.78,143.73,8.34877627]
[1728434784269,6.9547,143.79,143.74,6.9568]
[1728434784470,6.9547,143.79,143.75,1.39109268]
[1728434784671,6.9547,143.79,143.74,6.9569]
[1728434784672,6.9559,143.77,143.72,17.3949]
[1728434784866,6.9559,143.77,143.72,24.3527]
[1728434786890,6.9551,143.78,143.73,1.39125007]
[1728434787080,6.9545,143.8,143.73,17.19425007]
[1728434787671,6.9545,143.8,143.75,6.9564]
[1728434787870,6.9545,143.8,143.75,8.34742886]
[1728434788070,6.9545,143.8,143.76,1.39102777]
[1728434788286,6.9545,143.8,143.76,6.956]
[1728434788495,6.9545,143.8,143.77,1.39092127]
[1728434788793,7.16853899,143.83,143.76,6.956]
[1728434788962,7.16853899,143.83,143.75,24.3476]
[1728434789963,6.9546,143.79,143.75,24.3476]
[1728434790487,7.16853899,143.83,143.76,8.34655852]
[1728434790488,6.9536,143.81,143.76,8.34655852]
[1728434791290,24.54503789,143.85,143.78,23.776884]
[1728434791291,7.16583789,143.85,143.78,23.776884]
[1728434791601,6.9522,143.84,143.79,8.34477309]
[1728434791965,15.7105,143.86,143.79,1.39057309]
[1728434792191,6.952,143.85,143.81,6.9535]
[1728434792379,6.9512,143.86,143.82,1.39039861]
[1728434792782,6.9512,143.86,143.82,8.34339861]
[1728434793096,6.9508,143.87,143.82,8.34339861]
[1728434793263,6.9508,143.87,143.83,1.39030812]
[1728434794074,8.00908569,143.9,143.84,6.9521]
[1728434794075,6.9498,143.89,143.84,6.9521]
[1728434794383,6.9498,143.89,143.85,1.39006253]
[1728434794989,0.8441922,143.9,143.86,23.776884]
[1728434795194,0.8441922,143.9,143.89,6.9497]
[1728434796280,0.8441922,143.9,143.89,37.047464]
[1728434796501,0.8441922,143.9,143.89,58.43670726]
[1728434796809,23.51699956,144.02,143.9,43.776884]
[1728434797092,6.9469,143.95,143.9,23.776884]
[1728434797497,6.9469,143.95,143.91,1.38942356]
[1728434797699,17.3613,144.0,143.89,23.4441]
[1728434797991,6.9478,143.93,143.89,6.0699]
[1728434798379,6.9473,143.94,143.9,1.38950486]
[1728434798579,6.9468,143.95,143.9,1.38950486]
[1728434798807,17.3613,144.0,143.91,23.776884]
[1728434798975,17.3613,144.0,143.92,1.38919616]
[1728434799177,17.3613,144.0,143.9,23.776884]
[1728434799398,6.9459,143.97,143.91,6.9483]
[1728434799679,6.9459,143.97,143.92,23.776884]
[1728434800597,20.0,144.0,143.9,23.776884]
[1728434800898,6.9482,143.93,143.9,23.776884]
[1728434801309,17.3646,143.98,143.9,23.776884]
[1728434801510,6.9474,143.94,143.9,23.776884]
[1728434801679,17.3646,143.98,143.9,23.776884]
[1728434802096,6.9479,143.93,143.9,23.776884]
[1728434803206,6.9469,143.95,143.9,30.725984]
[1728434803804,6.9454,143.98,143.93,30.724284]
[1728434803994,23.51699956,144.02,143.95,23.776884]
[1728434804188,6.945,143.99,143.96,1.38895319]
[1728434804795,6.9445,144.0,143.97,23.776884]
[1728434804986,6.9445,144.0,143.98,1.38879745]
[1728434805509,6.9435,144.02,143.97,30.722684]
[1728434805681,6.9435,144.02,143.99,1.38878983]
[1728434806087,6.9435,144.02,143.97,30.722684]
[1728434806389,6.943,144.03,143.99,23.776884]
[1728434806915,6.943,144.03,143.96,23.75639]
[1728434806916,6.9434,144.02,143.97,23.776884]
[1728434807529,6.9434,144.02,143.98,1.38864483]
[1728434808214,0.8441922,144.04,143.99,23.776884]
[1728434808505,0.8441922,144.04,144.0,1.38847503]
[1728434809113,7.7866922,144.04,144.0,1.38847503]
[1728434809334,0.8441922,144.04,144.01,23.776884]
[1728434809512,0.8441922,144.04,144.02,1.38835629]
[1728434809690,0.8441922,144.04,144.03,23.776884]
[1728434809894,0.8441922,144.04,144.03,30.719784]
[1728434810096,0.8441922,144.04,144.03,23.776884]
[1728434810826,0.8441922,144.04,144.03,25.16504742]
[1728434812099,0.8441922,144.04,144.03,23.776884]
[1728434812619,0.8441922,144.04,144.01,23.776884]
[1728434812813,0.8441922,144.04,144.03,25.16503807]
[1728434812993,0.8441922,144.04,144.03,32.10793807]
[1728434813711,0.8441922,144.04,144.03,30.719784]
[1728434813900,0.8441922,144.04,144.03,23.776884]
[1728434814100,0.8441922,144.04,144.03,30.719784]
[1728434814501,0.8441922,144.04,144.03,23.776884]
[1728434814697,0.8441922,144.04,144.0,33.4216]
[1728434814889,7.7870922,144.04,144.0,33.4216]
[1728434815303,0.8441922,144.04,144.0,16.0615]
[1728434815507,6.943,144.03,143.98,6.9453]
[1728434816498,6.9435,144.02,143.97,24.31]
[1728434817420,6.9435,144.02,143.98,1.38856198]
[1728434817711,6.9435,144.02,143.99,23.776884]
[1728434818111,6.9435,144.02,143.98,6.9453]
[1728434818112,6.9435,144.02,143.98,23.776884]
[1728434818704,6.944,144.01,143.98,23.776884]
[1728434818901,6.944,144.01,143.96,28.4707]
[1728434819111,0.8441922,144.04,143.96,15.2597]
[1728434819416,6.9438,144.02,143.97,1.38871312]
[1728434819611,6.9438,144.02,143.97,8.33451312]
[1728434819812,0.8441922,144.04,143.96,15.2597]
[1728434819813,6.9446,144.0,143.96,15.2597]
[1728434820420,6.9451,143.99,143.96,15.2597]
[1728434820999,6.9451,143.99,143.97,1.38888578]
[1728434821199,6.9451,143.99,143.96,15.2597]
[1728434821404,6.9458,143.97,143.93,15.7802]
[1728434821614,17.3602,144.01,143.93,15.7802]
[1728434821832,35.5580922,144.04,143.93,15.7802]
[1728434822032,18.2010922,144.04,143.95,6.9468]
[1728434822201,6.944,144.01,143.96,8.3349674]
[1728434822402,6.944,144.01,143.97,6.9457]
[1728434822623,6.9435,144.02,143.98,1.38875256]
[1728434823507,6.9435,144.02,143.99,23.776884]
[1728434823721,6.9435,144.02,144.0,1.3885986]
[1728434825218,6.9435,144.02,143.99,23.776884]
[1728434825597,0.8441922,144.04,143.97,23.776884]
[1728434825828,6.9446,144.0,143.97,23.776884]
[1728434826201,0.8441922,144.04,143.97,23.776884]
[1728434826402,6.9454,143.98,143.97,23.776884]
[1728434826699,6.9449,143.99,143.97,23.776884]
[1728434827228,17.358,144.03,143.99,23.776884]
[1728434827229,6.9433,144.03,143.99,23.776884]
[1728434829200,0.8441922,144.04,143.96,6.9459]
[1728434829404,6.945,143.99,143.94,24.3149]
[1728434830511,6.945,143.99,143.95,23.776884]
[1728434830720,6.945,143.99,143.95,30.723684]
[1728434831011,6.9454,143.98,143.95,23.776884]
[1728434831308,22.486,144.03,143.93,22.7279]
[1728434831309,17.3592,144.02,143.93,22.7279]
[1728434831533,6.9469,143.95,143.92,6.1735]
[1728434831860,17.3621,144.0,143.92,13.1217]
[1728434832040,6.9459,143.97,143.92,13.1217]
[1728434832416,6.9448,144.0,143.95,6.9467]
[1728434832610,6.9449,143.99,143.94,17.368]
[1728434832823,39.8439,144.03,143.95,23.776884]
[1728434833038,6.9455,143.98,143.95,23.776884]
[1728434833329,39.8439,144.03,143.96,1.38897102]
[1728434834611,39.8439,144.03,143.94,17.368]
[1728434834932,6.9457,143.98,143.95,23.776884]
[1728434835236,6.9457,143.98,143.95,1.388963]
[1728434835732,39.8439,144.03,143.96,23.776884]
[1728434835907,6.9445,144.0,143.96,23.776884]
[1728434836838,6.9452,143.99,143.95,23.776884]
[1728434837211,6.9452,143.99,143.96,1.38895811]
[1728434837639,6.9452,143.99,143.95,23.776884]
[1728434837928,17.3603,144.01,143.93,23.776884]
[1728434838137,6.947,143.95,143.91,24.3199]
[1728434838314,6.9464,143.96,143.91,17.3713]
[1728434838521,6.9455,143.98,143.93,6.9477]
[1728434838726,6.9455,143.98,143.94,1.38902933]
[1728434839520,22.486,144.03,143.95,30.723584]
[1728434839521,6.9449,143.99,143.95,30.723584]